fUST/lending_fUST_20250410
["ID","MTS","AMOUNT","RATE_DAILY","PERIOD"]
[357662103,1744293040405,-500.0,0.00016438,2]
[357662104,1744293040415,-500.0,0.00016438,2]
[357662106,1744293040424,-574.6942766,0.00016438,2]
[357662107,1744293040435,-634.71,0.00016438,2]
[357662108,1744293040445,-500.0,0.00016438,2]
[357662109,1744293040456,-500.0,0.00016438,2]
[357662110,1744293040466,-3103.03,0.00016438,2]
[357662111,1744293040476,-3103.03,0.00016438,2]
[357662112,1744293040486,-3103.03,0.00016438,2]
[357662113,1744293040496,-3103.03,0.00016438,2]
[357662114,1744293040509,-3103.03,0.00016438,2]
[357662115,1744293040522,-3103.03,0.00016438,2]
[357662116,1744293040532,-3103.03,0.00016438,2]
[357662117,1744293040542,-3103.03,0.00016438,2]
[357662118,1744293040552,-3103.03,0.00016438,2]
[357662119,1744293040562,-3103.03,0.00016438,2]
[357662120,1744293040572,-84.12226991,0.00016438,2]
[357662123,1744293040820,-1049.35407353,0.00016438,2]
[357662124,1744293040938,-1521.12312969,0.00016438,2]
[357662125,1744293040949,-398.076,0.00016438,2]
[357662147,1744293043377,-50.35452687,0.00016438,2]
[357662148,1744293043387,-843.48660821,0.00016438,2]
[357662149,1744293043399,-316.54659844,0.00016438,2]
[357662150,1744293043557,-275.15567537,0.00016438,2]
[357662151,1744293043570,-1667.84111798,0.00016438,2]
[357662152,1744293043580,-34.74071973,0.00016438,2]
[357662233,1744293070973,295.58703611,0.00014932,2]
[357662234,1744293080159,700.0,0.00014594,2]
[357662235,1744293151519,176.26960704,0.00018,10]
[357662237,1744293504086,307.8423176,0.00014887,2]
[357662238,1744293545954,-199.9956401,0.00015032,2]
[357662239,1744293561102,213.162183,0.00014329,2]
[357662240,1744293567327,775.7696132,0.00014443,2]
[357662241,1744293569668,-196.2234246,0.0001503,2]
[357662242,1744293579923,180.08644149,0.00014553,2]
[357662243,1744293604162,-250.0,0.0001503,2]
[357662244,1744293608267,183.64937149,0.00015,2]
[357662245,1744293637176,-224.0,0.0001503,2]
[357662246,1744293638979,-160.0,0.0001503,2]
[357662247,1744293662271,-145.37055208,0.0001503,2]
[357662248,1744293662296,-10.52739762,0.00015031,2]
[357662249,1744293683416,183.576577,0.00014279,2]
[357662250,1744293722245,-300.0,0.00015031,2]
[357662251,1744293754714,-311.18040688,0.0001503,2]
[357662252,1744293754741,-188.81959312,0.0001503,2]
[357662253,1744293757886,-311.18040688,0.0001503,2]
[357662254,1744293771965,-371.73449035,0.0001503,2]
[357662255,1744293771991,-128.26550965,0.0001503,2]
[357662256,1744293776595,-371.73449035,0.0001503,2]
[357662257,1744293777897,-500.0,0.0001503,2]
[357662258,1744293780708,-500.0,0.0001503,2]
[357662259,1744293781730,-404.15777526,0.0001503,2]
[357662260,1744293784263,-160.0,0.00015029,2]
[357662261,1744293787761,600.0,0.00014164,2]
[357662262,1744293830459,24900.0,0.00014404,2]
[357662263,1744293846069,-290.0,0.00015029,2]
[357662264,1744293846094,-210.0,0.00015029,2]
[357662265,1744293874857,-217.82628482,0.00015029,2]
[357662266,1744293874881,-74.94224269,0.00015029,2]
[357662267,1744293892460,-407.13320836,0.00015029,2]
[357662268,1744293904142,-186.4443479,0.00015028,2]
[357662271,1744293962057,-128.1386922,0.00015029,2]
[357662272,1744293962085,-26.8613078,0.00015029,2]
[357662275,1744294043700,-204.0,0.00015027,2]
[357662276,1744294047514,-96.0,0.00015027,2]
[357662277,1744294047539,-108.0,0.00015028,2]
[357662278,1744294049489,-44.47839938,0.00015028,2]
[357662279,1744294049513,-159.52160062,0.00015028,2]
[357662280,1744294079915,853.64472956,0.00014932,2]
[357662355,1744294232417,-300.0,0.00015026,2]
[357662357,1744294232427,-379.29342008,0.00015027,2]
[357662360,1744294232436,-500.0,0.00015027,2]
[357662361,1744294232446,-500.0,0.00015027,2]
[357662364,1744294232457,-500.0,0.00015027,2]
[357662366,1744294232467,-500.0,0.00015027,2]
[357662367,1744294232476,-500.0,0.00015027,2]
[357662369,1744294232486,-500.0,0.00015027,2]
[357662372,1744294232496,-500.0,0.00015027,2]
[357662374,1744294232506,-500.0,0.00015027,2]
[357662376,1744294232517,-500.0,0.00015027,2]
[357662378,1744294232526,-500.0,0.00015027,2]
[357662380,1744294232536,-500.0,0.00015027,2]
[357662382,1744294232546,-500.0,0.00015027,2]
[357662384,1744294232556,-500.0,0.00015027,2]
[357662386,1744294232565,-500.0,0.00015027,2]
[357662388,1744294232575,-500.0,0.00015027,2]
[357662391,1744294232584,-550.87766816,0.00015027,2]
[357662394,1744294232594,-500.0,0.00015027,2]
[357662396,1744294232603,-500.0,0.00015027,2]
[357662398,1744294232612,-500.0,0.00015027,2]
[357662400,1744294232622,-500.0,0.00015027,2]
[357662402,1744294232631,-500.0,0.00015027,2]
[357662404,1744294232640,-500.0,0.00015027,2]
[357662406,1744294232650,-500.0,0.00015027,2]
[357662408,1744294232660,-500.0,0.00015027,2]
[357662410,1744294232670,-500.0,0.00015027,2]
[357662411,1744294232684,-500.0,0.00015027,2]
[357662412,1744294232694,-500.0,0.00015027,2]
[357662413,1744294232704,-250.0,0.00015027,2]
[357662414,1744294232713,-500.0,0.00015027,2]
[357662415,1744294232723,-500.0,0.00015027,2]
[357662416,1744294232732,-500.0,0.00015027,2]
[357662417,1744294232742,-500.0,0.00015027,2]
[357662418,1744294232751,-500.0,0.00015027,2]
[357662419,1744294232760,-500.0,0.00015027,2]
[357662420,1744294232771,-500.0,0.00015027,2]
[357662421,1744294232780,-500.0,0.00015027,2]
[357662422,1744294232790,-500.0,0.00015027,2]
[357662423,1744294232800,-24666.95800713,0.00015028,2]
[357662424,1744294232810,-24564.67603633,0.00015032,2]
[357662425,1744294232844,-50116.74381003,0.00015032,2]
[357662426,1744294232854,-2368.9712596,0.00015133,2]
[357662427,1744294232864,-600.0,0.00015534,2]
[357662428,1744294232874,-853.64472954,0.00015837,2]
[357662429,1744294232884,-159.1,0.00015918,2]
[357662430,1744294232895,-189.4168026,0.00015944,2]
[357662432,1744294232905,-320.04969,0.00015979,2]
[357662434,1744294232915,-250.0,0.00016238,2]
[357662436,1744294232925,-68794.17316152,0.00016338,2]
[357662438,1744294232936,-2313.77,0.000164,2]
[357662440,1744294232946,-200.0,0.00016428,2]
[357662442,1744294232956,-151.0,0.00016428,2]
[357662444,1744294232966,-176.06663849,0.00016437,2]
[357662447,1744294232976,-224.22574532,0.00016437,2]
[357662448,1744294232987,-500.0,0.00016438,2]
[357662451,1744294232997,-500.0,0.00016438,2]
[357662453,1744294233008,-628.7818761,0.00016438,2]
[357662455,1744294233019,-500.0,0.00016438,2]
[357662457,1744294233029,-500.0,0.00016438,2]
[357662459,1744294233040,-500.0,0.00016438,2]
[357662461,1744294233050,-643.96610701,0.00016438,2]
[357662463,1744294233061,-500.0,0.00016438,2]
[357662465,1744294233071,-500.0,0.00016438,2]
[357662467,1744294233082,-331.44891393,0.00016438,2]
[357662469,1744294233093,-500.0,0.00016438,2]
[357662471,1744294233105,-204.33141374,0.00016438,2]
[357662473,1744294233116,-500.0,0.00016438,2]
[357662475,1744294233128,-592.37352401,0.00016438,2]
[357662477,1744294233139,-500.0,0.00016438,2]
[357662479,1744294233149,-500.0,0.00016438,2]
[357662481,1744294233160,-500.0,0.00016438,2]
[357662483,1744294233171,-500.0,0.00016438,2]
[357662485,1744294233180,-500.0,0.00016438,2]
[357662487,1744294233190,-500.0,0.00016438,2]
[357662489,1744294233200,-500.0,0.00016438,2]
[357662491,1744294233210,-500.0,0.00016438,2]
[357662493,1744294233220,-500.0,0.00016438,2]
[357662495,1744294233230,-505.59,0.00016438,2]
[357662497,1744294233241,-500.0,0.00016438,2]
[357662499,1744294233250,-500.0,0.00016438,2]
[357662501,1744294233260,-500.0,0.00016438,2]
[357662503,1744294233270,-500.0,0.00016438,2]
[357662505,1744294233280,-500.0,0.00016438,2]
[357662507,1744294233290,-500.0,0.00016438,2]
[357662509,1744294233301,-500.0,0.00016438,2]
[357662512,1744294233314,-500.0,0.00016438,2]
[357662514,1744294233326,-500.0,0.00016438,2]
[357662516,1744294233336,-500.0,0.00016438,2]
[357662518,1744294233347,-506.44,0.00016438,2]
[357662520,1744294233359,-500.0,0.00016438,2]
[357662522,1744294233370,-500.0,0.00016438,2]
[357662524,1744294233380,-500.0,0.00016438,2]
[357662526,1744294233390,-520.51480563,0.00016438,2]
[357662528,1744294233402,-300.0,0.00016438,2]
[357662530,1744294233413,-500.0,0.00016438,2]
[357662532,1744294233423,-500.0,0.00016438,2]
[357662534,1744294233434,-292.88886317,0.00016438,2]
[357662536,1744294233445,-568.3796381,0.00016438,2]
[357662538,1744294233455,-500.0,0.00016438,2]
[357662540,1744294233466,-500.0,0.00016438,2]
[357662542,1744294233478,-500.0,0.00016438,2]
[357662544,1744294233488,-740.77,0.00016438,2]
[357662547,1744294233499,-500.0,0.00016438,2]
[357662549,1744294233509,-500.0,0.00016438,2]
[357662551,1744294233521,-151.0,0.00016438,2]
[357662552,1744294233531,-151.0,0.00016438,2]
[357662555,1744294233542,-151.0,0.00016438,2]
[357662557,1744294233553,-579.86,0.00016438,2]
[357662559,1744294233563,-1413.41,0.00016438,2]
[357662561,1744294233575,-500.0,0.00016438,2]
[357662563,1744294233586,-501.40237653,0.00016438,2]
[357662565,1744294233596,-500.0,0.00016438,2]
[357662567,1744294233606,-500.0,0.00016438,2]
[357662569,1744294233617,-500.0,0.00016438,2]
[357662571,1744294233628,-501.31465498,0.00016438,2]
[357662573,1744294233639,-500.0,0.00016438,2]
[357662575,1744294233649,-500.0,0.00016438,2]
[357662577,1744294233660,-500.0,0.00016438,2]
[357662580,1744294233671,-636.61248503,0.00016438,2]
[357662581,1744294233681,-500.0,0.00016438,2]
[357662582,1744294233691,-500.0,0.00016438,2]
[357662583,1744294233701,-500.0,0.00016438,2]
[357662584,1744294233710,-500.0,0.00016438,2]
[357662585,1744294233720,-500.0,0.00016438,2]
[357662586,1744294233730,-514.14068882,0.00016438,2]
[357662587,1744294233741,-500.0,0.00016438,2]
[357662588,1744294233751,-500.0,0.00016438,2]
[357662589,1744294233763,-500.0,0.00016438,2]
[357662590,1744294233773,-500.0,0.00016438,2]
[357662591,1744294233787,-500.0,0.00016438,2]
[357662592,1744294233797,-500.0,0.00016438,2]
[357662593,1744294233807,-500.0,0.00016438,2]
[357662594,1744294233817,-500.0,0.00016438,2]
[357662595,1744294233827,-500.0,0.00016438,2]
[357662596,1744294233837,-500.0,0.00016438,2]
[357662597,1744294233846,-500.0,0.00016438,2]
[357662598,1744294233856,-587.62,0.00016438,2]
[357662599,1744294233866,-500.0,0.00016438,2]
[357662600,1744294233876,-500.0,0.00016438,2]
[357662601,1744294233886,-500.0,0.00016438,2]
[357662602,1744294233896,-500.0,0.00016438,2]
[357662603,1744294233905,-500.0,0.00016438,2]
[357662604,1744294233915,-501.93,0.00016438,2]
[357662605,1744294233924,-500.0,0.00016438,2]
[357662606,1744294233934,-500.0,0.00016438,2]
[357662607,1744294233944,-500.0,0.00016438,2]
[357662608,1744294233953,-500.0,0.00016438,2]
[357662609,1744294233962,-500.0,0.00016438,2]
[357662610,1744294233972,-500.0,0.00016438,2]
[357662611,1744294233982,-500.0,0.00016438,2]
[357662612,1744294233992,-500.0,0.00016438,2]
[357662613,1744294234147,-500.0,0.00016438,2]
[357662614,1744294234157,-500.0,0.00016438,2]
[357662615,1744294234166,-500.0,0.00016438,2]
[357662616,1744294234176,-500.0,0.00016438,2]
[357662617,1744294234185,-500.0,0.00016438,2]
[357662618,1744294234195,-500.0,0.00016438,2]
[357662619,1744294234204,-847.99,0.00016438,2]
[357662620,1744294234214,-500.0,0.00016438,2]
[357662621,1744294234224,-500.0,0.00016438,2]
[357662622,1744294234234,-508.20095778,0.00016438,2]
[357662623,1744294234244,-500.0,0.00016438,2]
[357662624,1744294234253,-645.16,0.00016438,2]
[357662625,1744294234263,-858.16,0.00016438,2]
[357662626,1744294234273,-500.0,0.00016438,2]
[357662627,1744294234282,-500.0,0.00016438,2]
[357662628,1744294234292,-500.0,0.00016438,2]
[357662629,1744294234302,-500.0,0.00016438,2]
[357662630,1744294234313,-1138.16,0.00016438,2]
[357662631,1744294234325,-500.0,0.00016438,2]
[357662632,1744294234335,-500.0,0.00016438,2]
[357662633,1744294234345,-151.0,0.00016438,2]
[357662634,1744294234356,-500.0,0.00016438,2]
[357662635,1744294234366,-151.0,0.00016438,2]
[357662636,1744294234376,-151.520807,0.00016438,2]
[357662637,1744294234385,-500.0,0.00016438,2]
[357662638,1744294234397,-749.04,0.00016438,2]
[357662639,1744294234408,-500.0,0.00016438,2]
[357662640,1744294234418,-500.0,0.00016438,2]
[357662641,1744294234429,-500.0,0.00016438,2]
[357662642,1744294234440,-500.0,0.00016438,2]
[357662643,1744294234450,-550.49,0.00016438,2]
[357662644,1744294234460,-1684.46,0.00016438,2]
[357662645,1744294234470,-500.0,0.00016438,2]
[357662646,1744294234480,-500.0,0.00016438,2]
[357662647,1744294234490,-500.0,0.00016438,2]
[357662648,1744294234500,-500.0,0.00016438,2]
[357662649,1744294234511,-500.0,0.00016438,2]
[357662650,1744294234521,-500.0,0.00016438,2]
[357662651,1744294234531,-500.0,0.00016438,2]
[357662652,1744294234540,-582.11,0.00016438,2]
[357662653,1744294234550,-500.0,0.00016438,2]
[357662654,1744294234560,-500.0,0.00016438,2]
[357662655,1744294234570,-500.0,0.00016438,2]
[357662656,1744294234580,-500.0,0.00016438,2]
[357662657,1744294234589,-380.03272578,0.00016438,2]
[357662658,1744294234600,-500.0,0.00016438,2]
[357662659,1744294234610,-500.0,0.00016438,2]
[357662660,1744294234620,-500.0,0.00016438,2]
[357662661,1744294234630,-500.0,0.00016438,2]
[357662662,1744294234639,-500.0,0.00016438,2]
[357662663,1744294234650,-500.0,0.00016438,2]
[357662664,1744294234660,-500.0,0.00016438,2]
[357662665,1744294234669,-500.0,0.00016438,2]
[357662666,1744294234679,-500.0,0.00016438,2]
[357662667,1744294234688,-500.0,0.00016438,2]
[357662668,1744294234698,-500.0,0.00016438,2]
[357662669,1744294234708,-500.0,0.00016438,2]
[357662670,1744294234718,-1324.51,0.00016438,2]
[357662671,1744294234728,-500.0,0.00016438,2]
[357662672,1744294234738,-500.0,0.00016438,2]
[357662673,1744294234748,-500.0,0.00016438,2]
[357662674,1744294234758,-503.0116718,0.00016438,2]
[357662675,1744294234769,-500.0,0.00016438,2]
[357662676,1744294234779,-500.0,0.00016438,2]
[357662677,1744294234790,-500.0,0.00016438,2]
[357662678,1744294234800,-500.0,0.00016438,2]
[357662679,1744294234810,-183.06961377,0.00016438,2]
[357662680,1744294234820,-500.0,0.00016438,2]
[357662681,1744294234829,-500.0,0.00016438,2]
[357662682,1744294234839,-505.92626526,0.00016438,2]
[357662683,1744294234849,-500.0,0.00016438,2]
[357662684,1744294234859,-500.0,0.00016438,2]
[357662685,1744294234869,-500.0,0.00016438,2]
[357662686,1744294234879,-289.56751087,0.00016438,2]
[357662687,1744294234888,-500.0,0.00016438,2]
[357662688,1744294234898,-500.0,0.00016438,2]
[357662689,1744294234908,-500.0,0.00016438,2]
[357662690,1744294234918,-500.0,0.00016438,2]
[357662691,1744294234927,-500.0,0.00016438,2]
[357662692,1744294234937,-297.61162706,0.00016438,2]
[357662693,1744294234960,-202.38837294,0.00016438,2]
[357662694,1744294234970,-206.23187582,0.00016438,2]
[357662732,1744294241150,-200.0,0.00016428,2]
[357662733,1744294241160,-293.76812418,0.00016438,2]
[357662734,1744294241169,-82.39614471,0.00016438,2]
[357662757,1744294245101,-401.0,0.00015994,2]
[357662758,1744294245112,-417.60385529,0.00016438,2]
[357662759,1744294245123,-548.44371219,0.00016438,2]
[357662760,1744294245135,-11.89628781,0.00016438,2]
[357662761,1744294245146,-500.0,0.00016438,2]
[357662762,1744294245156,-500.0,0.00016438,2]
[357662763,1744294245167,-252.86339145,0.00016438,2]
[357662794,1744294260575,660.42454233,0.00014932,2]
[357662796,1744294330716,164.536429,0.00018,10]
[357662799,1744294350770,500.0,0.00014164,2]
[357662801,1744294479845,186.81383026,0.00014553,2]
[357662897,1744295432808,-500.0,0.00015213,2]
[357662898,1744295432822,-204.63576152,0.00015213,2]
[357662899,1744295432833,-150.60644602,0.00015213,2]
[357662900,1744295432846,-234.28687472,0.00015213,2]
[357662901,1744295432856,-166707.57262039,0.00015214,2]
[357662903,1744295433003,-1035.5,0.00015214,2]
[357662905,1744295433059,-406.855,0.00015214,2]
[357662906,1744295433072,-10102.57102644,0.00015214,2]
[357662919,1744295438978,-584.07150235,0.00015213,2]
[357662920,1744295438988,-225.89755612,0.00015213,2]
[357662921,1744295439000,-175.24769463,0.00015213,2]
[357662922,1744295439013,-500.0,0.00015213,2]
[357662923,1744295439023,-500.0,0.00015213,2]
[357662924,1744295439034,-500.0,0.00015213,2]
[357662925,1744295439045,-500.0,0.00015213,2]
[357662926,1744295439055,-500.0,0.00015213,2]
[357662927,1744295439066,-500.0,0.00015213,2]
[357662928,1744295439076,-500.0,0.00015213,2]
[357662929,1744295439087,-58.50230535,0.00015213,2]
[357662930,1744295439100,-441.49769465,0.00015213,2]
[357662931,1744295439110,-500.0,0.00015213,2]
[357662932,1744295439121,-500.0,0.00015213,2]
[357662933,1744295439131,-334.91547427,0.00015213,2]
[357662934,1744295439141,-500.0,0.00015213,2]
[357662935,1744295439152,-1562.78683108,0.00015214,2]
[357662936,1744295439164,-1749.07082485,0.00015214,2]
[357662958,1744295443799,-16400.00000001,0.00015214,2]
[357662959,1744295443812,-28904.89626161,0.00015214,2]
[357662979,1744295447401,-9186.71304751,0.00015214,2]
[357662980,1744295447424,-134221.86863305,0.00015214,2]
[357662981,1744295516740,3926.9706222,0.00014846,2]
[357662984,1744295558797,-176.50603043,0.00015115,2]
[357662985,1744295583422,-204.26402536,0.00015114,2]
[357662987,1744295642109,-444.47006239,0.00015115,2]
[357662988,1744295642134,-55.52993761,0.00015115,2]
[357662989,1744295673701,-300.0,0.00015114,2]
[357662990,1744295673726,-200.0,0.00015114,2]
[357662991,1744295690242,-167.72859202,0.00015114,2]
[357662992,1744295706041,-190.95493405,0.00015015,2]
[357662995,1744295819824,213.162184,0.00014193,2]
[357662997,1744295923090,-191.72352889,0.00015013,2]
[357662998,1744295981491,200.0,0.00014,2]
[357662999,1744296034549,-199.29166671,0.00015012,2]
[357663000,1744296064287,-300.0,0.00015011,2]
[357663002,1744296123066,-151.06293082,0.00015011,2]
[357663004,1744296137679,15450.7847252,0.00014093,2]
[357663005,1744296138804,-148.93706918,0.00015011,2]
[357663006,1744296138828,-90.93415812,0.00015012,2]
[357663007,1744296154134,-156.62859419,0.00015011,2]
[357663008,1744296224745,7780.7498358,0.00014089,2]
[357663009,1744296234504,318.47722587,0.00014912,2]
[357663010,1744296325745,-300.0,0.0001501,2]
[357663011,1744296363396,-188.05621933,0.00015009,2]
[357663012,1744296376778,1785.87745599,0.0001491,2]
[357663013,1744296378628,188.05621933,0.00015001,2]
[357663014,1744296379829,-111.94378067,0.00015009,2]
[357663015,1744296379856,-42.8811381,0.0001501,2]
[357663016,1744296393790,154.82491877,0.00015001,2]
[357663017,1744296394700,-157.1188619,0.0001501,2]
[357663018,1744296394726,-92.8811381,0.0001501,2]
[357663019,1744296397534,-254.68189248,0.00015009,2]
[357663020,1744296401749,-171.5637043,0.00015009,2]
[357663021,1744296424321,-199.2510479,0.00015008,2]
[357663040,1744296482197,-86.19114948,0.00015009,2]
[357663041,1744296482222,-73.78373252,0.00015009,2]
[357663042,1744296518379,-159.3633804,0.00015008,2]
[357663043,1744296519470,-159.3633804,0.00015008,2]
[357663044,1744296544767,-164.9835011,0.00015007,2]
[357663075,1744296583329,1562.642774,0.00014908,2]
[357663076,1744296587454,-135.0164989,0.00015007,2]
[357663077,1744296587479,-24.3468815,0.00015008,2]
[357663078,1744296603933,-300.0,0.00015007,2]
[357663079,1744296609671,-1000.0,0.00025151,120]
[357663080,1744296609700,-1000.0,0.00025205,120]
[357663081,1744296609728,-1000.0,0.00025479,120]
[357663082,1744296609760,-154.67969491,0.00027196,120]
[357663083,1744296609787,-3067.31944276,0.00027397,120]
[357663084,1744296609816,-188.0218562,0.00027397,120]
[357663085,1744296626839,-10000.0,0.00029,120]
[357663094,1744296632065,-500.0,0.00015008,2]
[357663096,1744296632076,-500.0,0.00015008,2]
[357663098,1744296632087,-500.0,0.00015008,2]
[357663100,1744296632097,-500.0,0.00015008,2]
[357663102,1744296632108,-419.90839003,0.00015008,2]
[357663104,1744296632122,-500.0,0.00015008,2]
[357663107,1744296632132,-500.0,0.00015008,2]
[357663109,1744296632142,-249.58417556,0.00015008,2]
[357663111,1744296632155,-500.0,0.00015008,2]
[357663113,1744296632166,-500.0,0.00015008,2]
[357663115,1744296632176,-500.0,0.00015008,2]
[357663117,1744296632188,-500.0,0.00015008,2]
[357663119,1744296632198,-500.0,0.00015008,2]
[357663121,1744296632208,-500.0,0.00015008,2]
[357663123,1744296632218,-500.0,0.00015008,2]
[357663125,1744296632228,-500.0,0.00015008,2]
[357663127,1744296632237,-500.0,0.00015008,2]
[357663129,1744296632247,-500.0,0.00015008,2]
[357663131,1744296632257,-500.0,0.00015008,2]
[357663133,1744296632267,-500.0,0.00015008,2]
[357663135,1744296632278,-500.0,0.00015008,2]
[357663137,1744296632288,-500.0,0.00015008,2]
[357663139,1744296632298,-500.0,0.00015008,2]
[357663141,1744296632307,-500.0,0.00015008,2]
[357663143,1744296632317,-500.0,0.00015008,2]
[357663145,1744296632327,-500.0,0.00015008,2]
[357663147,1744296632337,-500.0,0.00015008,2]
[357663149,1744296632346,-500.0,0.00015008,2]
[357663151,1744296632356,-500.0,0.00015008,2]
[357663153,1744296632366,-500.0,0.00015008,2]
[357663155,1744296632376,-500.0,0.00015008,2]
[357663157,1744296632386,-500.0,0.00015008,2]
[357663159,1744296632396,-500.0,0.00015008,2]
[357663161,1744296632406,-500.0,0.00015008,2]
[357663163,1744296632415,-500.0,0.00015008,2]
[357663165,1744296632425,-500.0,0.00015008,2]
[357663167,1744296632435,-500.0,0.00015008,2]
[357663169,1744296632445,-500.0,0.00015008,2]
[357663171,1744296632455,-500.0,0.00015008,2]
[357663173,1744296632465,-500.0,0.00015008,2]
[357663175,1744296632474,-500.0,0.00015008,2]
[357663177,1744296632484,-500.0,0.00015008,2]
[357663179,1744296632495,-500.0,0.00015008,2]
[357663181,1744296632504,-500.0,0.00015008,2]
[357663184,1744296632514,-500.0,0.00015008,2]
[357663186,1744296632524,-500.0,0.00015008,2]
[357663188,1744296632534,-614.85077822,0.00015008,2]
[357663190,1744296632543,-500.0,0.00015008,2]
[357663192,1744296632553,-500.0,0.00015008,2]
[357663194,1744296632564,-500.0,0.00015008,2]
[357663196,1744296632576,-500.0,0.00015008,2]
[357663198,1744296632586,-500.0,0.00015008,2]
[357663200,1744296632597,-500.0,0.00015008,2]
[357663202,1744296632607,-500.0,0.00015008,2]
[357663204,1744296632618,-500.0,0.00015008,2]
[357663206,1744296632634,-500.0,0.00015008,2]
[357663209,1744296632645,-500.0,0.00015008,2]
[357663211,1744296632658,-500.0,0.00015008,2]
[357663212,1744296632669,-500.0,0.00015008,2]
[357663215,1744296632682,-500.0,0.00015008,2]
[357663217,1744296632693,-500.0,0.00015008,2]
[357663219,1744296632702,-500.0,0.00015008,2]
[357663221,1744296632713,-500.0,0.00015008,2]
[357663223,1744296632723,-500.0,0.00015008,2]
[357663225,1744296632735,-500.0,0.00015008,2]
[357663227,1744296632745,-500.0,0.00015008,2]
[357663229,1744296632755,-500.0,0.00015008,2]
[357663231,1744296632766,-500.0,0.00015008,2]
[357663233,1744296632778,-500.0,0.00015008,2]
[357663235,1744296632788,-500.0,0.00015008,2]
[357663238,1744296632799,-500.0,0.00015008,2]
[357663240,1744296632809,-500.0,0.00015008,2]
[357663242,1744296632821,-500.0,0.00015008,2]
[357663244,1744296632832,-500.0,0.00015008,2]
[357663246,1744296632843,-500.0,0.00015008,2]
[357663248,1744296632853,-500.0,0.00015008,2]
[357663250,1744296632862,-500.0,0.00015008,2]
[357663252,1744296632873,-500.0,0.00015008,2]
[357663254,1744296632885,-500.0,0.00015008,2]
[357663256,1744296632895,-500.0,0.00015008,2]
[357663258,1744296632906,-500.0,0.00015008,2]
[357663260,1744296632916,-500.0,0.00015008,2]
[357663262,1744296632927,-495.0,0.00015008,2]
[357663264,1744296632937,-500.0,0.00015008,2]
[357663266,1744296632947,-500.0,0.00015008,2]
[357663268,1744296632958,-500.0,0.00015008,2]
[357663270,1744296632968,-500.0,0.00015008,2]
[357663272,1744296632978,-500.0,0.00015008,2]
[357663274,1744296632988,-500.0,0.00015008,2]
[357663276,1744296632998,-500.0,0.00015008,2]
[357663278,1744296633008,-500.0,0.00015008,2]
[357663281,1744296633019,-500.0,0.00015008,2]
[357663283,1744296633030,-500.0,0.00015008,2]
[357663284,1744296633041,-500.0,0.00015009,2]
[357663285,1744296633052,-50000.0,0.00015009,2]
[357663287,1744296633063,-59.04506595,0.00015015,2]
[357663289,1744296633074,-59602.45881078,0.00015214,2]
[357663291,1744296633089,-17423.57303437,0.00015214,2]
[357663294,1744296637998,-300.0,0.0003,120]
[357663295,1744296638025,-4111.0,0.0003,120]
[357663296,1744296638053,-12536.72526453,0.0003,120]
[357663297,1744296638255,-1381.9,0.00015214,2]
[357663452,1744296640211,-20843.24560313,0.00015214,2]
[357664177,1744296648080,-419.56135214,0.00031,120]